Cogmind - Beta 12 @@@ ROGUE MODE // 2023.05.09 @ 09:02:11 Player: archydragon Result: Destroyed by G-47 Trooper with Particle Gun Performance ------------- Evolutions (0) 0 Regions Visited (2) 400 Robots Destroyed (18) 90 Value Destroyed (400) 400 Prototype IDs (2) 40 Alien Tech Used (0) 0 Bonus (0) 0 TOTAL SCORE: 930 Bonus ------- None Cogmind --------- Core Integrity 0/250 Matter 430/450 Energy 250/250 System Corruption 0% Temperature Cool (18) Movement Walking (400) Ox4 Location -10/Mines Parts ------- > --- POWER (1) -------- Ion Engine > --- PROPULSION (2) --- Aluminum Leg Aluminum Leg > --- UTILITY (2) ------ Huge Storage Unit Large Matter Pod > --- WEAPON (2) ------- Small Laser Datajack > --- INVENTORY (25) --- Flight Unit Small Storage Unit Huge Storage Unit Huge Storage Unit Medium Battery (150) Tractor Beam Hammer Peak State ------------ > --- POWER ------------ Light Ion Engine > --- PROPULSION ------- Wheel Wheel > --- UTILITY ---------- Huge Storage Unit Terrain Scanner > --- WEAPON ----------- Light Assault Rifle Datajack > --- INVENTORY -------- Light Ion Engine Aluminum Leg Aluminum Leg Small Storage Unit Huge Storage Unit Medium Battery Large Matter Pod Tractor Beam Small Laser Hammer [Rating: 8] Favorites ----------- Power Ion Engine Engine Ion Engine Propulsion Aluminum Leg Leg Aluminum Leg Wheel Wheel Utility Huge Storage Unit Device Terrain Scanner Storage Huge Storage Unit Weapon Hammer Energy Gun Small Laser Ballistic Gun Light Assault Rifle Impact Weapon Hammer Special Melee Weapon Datajack Build | -11 -10 -10 ------- Run | Jun Mat Min Slots Evolved . | . . . Power . | . . . Propulsion . | . . . Utility . | . . . Weapon . | . . . Parts Attached 23 | 6 15 2 Power 3 | 1 2 . Engine 3 | 1 2 . Core . | . . . Reactor . | . . . Propulsion 6 | 2 4 . Treads . | . . . Leg 3 | . 3 . Wheel 3 | 2 1 . Hover . | . . . Flight . | . . . Utility 5 | 1 3 1 Device 2 | . 2 . Storage 3 | 1 1 1 Processor . | . . . Hackware . | . . . Protection . | . . . Artifact . | . . . Weapon 9 | 2 6 1 Energy Gun 2 | 1 1 . Energy Cannon . | . . . Ballistic Gun 1 | 1 . . Ballistic Cannon . | . . . Launcher . | . . . Special Weapon . | . . . Impact Weapon 3 | . 3 . Slashing Weapon . | . . . Piercing Weapon . | . . . Special Melee Weapon 3 | . 2 1 Unidentified Prototypes . | . . . Parts Lost 8 | . 8 . Power 2 | . 2 . Propulsion 2 | . 2 . Utility 1 | . 1 . Weapon 3 | . 3 . Highest Loss Streak 7 | . 7 . To Critical Strikes . | . . . Average Slot Usage (%) 90 | . 87 93 Engine 12 | . 11 14 Leg 19 | . 8 28 Wheel 7 | . 16 . Device 3 | . 8 . Storage 18 | . 14 22 Energy Gun 10 | . 5 14 Ballistic Gun 4 | . 9 . Impact Weapon 11 | . 8 12 Special Melee Weapon 1 | . 2 1 Naked Turns . | . . . Heaviest Build 91 | 11 88 91 Greatest Support 20 | 20 20 20 Greatest Overweight (x) 28 | . 28 4 Average Overweight (x) 1 | . . 4 Largest Inventory Capacity 25 | 8 25 25 Average Capacity 20 | 7 15 25 Most Carried 10 | 3 10 7 Average Carried 5 | 1 6 5 Final Capacity 25 | 8 25 25 Final Carried 7 | 3 5 7 Class Distribution -------------------- 100% | Mutant Dominant Class ---------------- Mutant | -10/Materials Mutant | -10/Mines Resources | -11 -10 -10 ----------- Run | Jun Mat Min Matter Collected 550 | 172 358 20 Remotely 79 | . 79 . Salvage Created 634 | . 560 74 Parts 21 | . 16 5 Haulers Intercepted . | . . . Recyclers Shooed 1 | . 1 . Parts Field Recycled . | . . . Retrieved Matter . | . . . Parts Self-Destructed . | . . . Prevented . | . . . Kills | -11 -10 -10 ------- Run | Jun Mat Min Combat Hostiles Destroyed 14 | . 11 3 Melee 4 | . 4 . Guns 9 | . 6 3 Classes Destroyed 5 | . 5 . Recycler 2 | . 2 . Operator 1 | . 1 . Watcher 1 | . 1 . Swarmer 5 | . 3 2 Grunt 9 | . 8 1 Best Kill Streak 3 | . 3 2 Combat Bots Only 3 | . 3 2 Max Kills in Single Turn 1 | . 1 1 Gunslinging . | . . . Exploded . | . . . Melee 1 | . 1 . Uniques/NPCs Destroyed . | . . . Combat | -11 -10 -10 -------- Run | Jun Mat Min Damage Taken 932 | . 774 158 Core 265 | . 214 51 Absorbed by Shields . | . . . Regen/Repaired (Parts) 12 | . 12 . Core Remaining (%) 100 | 100 . . Volleys Fired 53 | . 38 15 Largest 2 | . 2 1 Hottest 60 | . 60 40 Shots Fired 59 | . 44 15 Gun 59 | . 44 15 Cannon . | . . . Launcher . | . . . Special . | . . . Kinetic 30 | . 30 . Thermal 23 | . 8 15 Explosive . | . . . Electromagnetic 6 | . 6 . Robot Hit Streak 10 | . 10 4 Robot Miss Streak 2 | . 2 2 Penetration Max . | . . . Secondary Targets . | . . . Shots Hit Robots 64 | . 52 12 Core Hits 24 | . 18 6 Critical Kills . | . . . Critical Parts Destroyed 4 | . 4 . Critical Strikes 4 | . 4 . Smash 4 | . 4 . Melee Attacks 20 | . 19 1 Impact 15 | . 15 . Slashing . | . . . Piercing . | . . . Sneak Attacks 7 | . 6 1 Combat Hostiles . | . . . Follow-up Attacks . | . . . Damage Inflicted 932 | . 811 121 Guns 455 | . 334 121 Cannons . | . . . Explosions . | . . . Melee 477 | . 477 . Ramming . | . . . Kinetic 182 | . 182 . Thermal 209 | . 88 121 Explosive . | . . . Electromagnetic 64 | . 64 . Impact 477 | . 477 . Slashing . | . . . Piercing . | . . . Highest Corruption . | . . . Average Corruption . | . . . Corruption Purged . | . . . Corruption Blocked . | . . . Overload Shots . | . . . Overflow Damage 221 | . 221 . Projectiles . | . . . Explosions . | . . . Melee 221 | . 221 . Knockbacks 1 | . 1 . Impact 1 | . 1 . Kinetic . | . . . Secondary . | . . . Self-Inflicted Damage . | . . . Shots . | . . . Rammed . | . . . Targets Rammed . | . . . Kicked . | . . . Crushed . | . . . Highest Temperature 88 | . 88 27 Average Temperature 29 | . 38 12 Received Heat Transfer 456 | . 378 78 Siege Activations . | . . . Robots Corrupted . | . . . Combat Hostiles . | . . . Parts Fried 5 | . 5 . Impact Corruptions 11 | . 11 . Robots Melted . | . . . Combat Hostiles . | . . . Parts Melted 2 | . 1 1 Heat Transferred 475 | . 200 275 Parts Sabotaged . | . . . Parts Stolen . | . . . Parts Stripped . | . . . Power Chain Reactions . | . . . Missiles Intercepted . | . . . Alert | -11 -10 -10 ------- Run | Jun Mat Min Peak Influence 227 | . 227 64 Initial 14 | . . 14 Average 47 | . 84 21 Maximum Alert Level 1 | . 1 . Low Security (%) 96 | 100 92 100 Level 1 3 | . 7 . Level 2 . | . . . Level 3 . | . . . Level 4 . | . . . Level 5 . | . . . High Security . | . . . Max Security . | . . . Squads Dispatched 2 | . 2 . Investigation 1 | . 1 . Extermination . | . . . Reinforcement 1 | . 1 . Assault . | . . . Garrison . | . . . Intercept . | . . . Searches Triggered . | . . . Construction Impeded . | . . . Haulers Reinforced . | . . . Active Scanning Responses . | . . . Cargo Convoy Interrupts . | . . . Stealth | -11 -10 -10 --------- Run | Jun Mat Min Distress Signals 1 | . 1 . Communications Jammed . | . . . Distress Signals . | . . . Times Spotted 24 | . 19 5 Peak Tracking Total 7 | . 7 3 Tactical Retreats 1 | . 1 . Traps | -11 -10 -10 ------- Run | Jun Mat Min Traps Triggered 1 | . 1 . Indirectly . | . . . Trap Hack Attempts . | . . . Triggered . | . . . Disarmed . | . . . Reprogrammed . | . . . Reused . | . . . Traps Extracted . | . . . Installed . | . . . Triggered . | . . . Machines | -11 -10 -10 ---------- Run | Jun Mat Min Machines Disabled . | . . . Max in Single Turn . | . . . Machines Repaired . | . . . Machines Sabotaged . | . . . Overloaded Fab Kills . | . . . Hacking | -11 -10 -10 --------- Run | Jun Mat Min Machines Accessed 5 | . 5 . Terminals 3 | . 3 . Fabricators . | . . . Repair Stations 1 | . 1 . Recycling Units 1 | . 1 . Scanalyzers . | . . . Garrison Access . | . . . Total Hacks 13 | . 13 . Successful 9 | . 9 . Failed 4 | . 4 . Catastrophic . | . . . Database Lockouts . | . . . Manual . | . . . Terminals 9 | . 9 . Fabricators . | . . . Repair Stations 2 | . 2 . Recycling Units 2 | . 2 . Scanalyzers . | . . . Garrison Access . | . . . Terminal Hacks 5 | . 5 . Record 3 | . 3 . Prototype ID Bank 1 | . 1 . Locate Traps 1 | . 1 . Fabricator Hacks . | . . . Repair Station Hacks 2 | . 2 . Scan Component 1 | . 1 . Repair 1 | . 1 . Recycling Unit Hacks 2 | . 2 . Process 1 | . 1 . Report Inventory 1 | . 1 . Scanalyzer . | . . . Garrison Access Hacks . | . . . Unauthorized Hacks . | . . . Terminals . | . . . Fabricators . | . . . Repair Stations . | . . . Recycling Units . | . . . Scanalyzers . | . . . Garrison Access . | . . . Data Cores Recovered . | . . . Used . | . . . Hacking Detections 5 | . 5 . Full Trace Events . | . . . Feedback Events . | . . . Feedback Blocked . | . . . Robot Schematics Acquired . | . . . Robots Built . | . . . Authchips . | . . . Time . | . . . Total Robot Build Rating . | . . . Part Schematics Acquired . | . . . Parts Built . | . . . Authchips . | . . . Time . | . . . Total Part Build Rating . | . . . Parts Repaired 1 | . 1 . Time 26 | . 26 . Parts Recycled . | . . . Recycled Matter 3 | . 3 . Retrieved Matter . | . . . Retrieved Components . | . . . Parts Scanalyzed . | . . . Part Schematics Acquired . | . . . Parts Damaged . | . . . Bothacking | -11 -10 -10 ------------ Run | Jun Mat Min Used RIF Installer . | . . . Robots Hacked 2 | . 2 . Non-combat 1 | . 1 . Combat 1 | . 1 . Robot Hacks Applied 4 | . 4 . parse_system 2 | . 2 . find_recycling 2 | . 2 . Relay Couplers Released . | . . . Fabnet Peak Effective % . | . . . Robots Rewired . | . . . Allies Hacked . | . . . Hacks Repelled . | . . . Allies | -11 -10 -10 -------- Run | Jun Mat Min Total Allies . | . . . Largest Group . | . . . Highest-Rated Group . | . . . Highest-Rated Ally . | . . . Total Orders . | . . . Ally Attacks . | . . . Total Damage . | . . . Kills . | . . . Allies Corrupted . | . . . Allies Melted . | . . . Intel | -11 -10 -10 ------- Run | Jun Mat Min Robot Analysis Total . | . . . Derelict Logs Recovered 1 | . . 1 Drone Launches . | . . . Drone Recoveries . | . . . Exploration | -11 -10 -10 ------------- Run | Jun Mat Min Turns Passed 1252 | 46 534 672 Spaces Moved 499 | 40 300 159 Core 3 | 2 1 . Treads . | . . . Legs 194 | . 35 159 Wheels 302 | 38 264 . Hover . | . . . Flight . | . . . Fastest Speed 50 | 50 80 400 Average Speed 210 | 78 127 400 Slowest Speed 1450 | 80 1450 400 Overloaded Moves . | . . . Propulsion Burnouts . | . . . Robots Hopped . | . . . Cave-ins Triggered . | . . . Exploration Rate (%) 29 | 3 40 46 Regions Visited 2 Branch Regions 1 Pre-discovered Areas 1 | . . 1 Known Exits Taken . | . . . Unknown Exits Taken 2 | 1 1 . Scrap Searched . | . . . Spaces Dug . | . . . Terrain Destroyed . | . . . Melee . | . . . Projectile . | . . . AOE . | . . . Terrain Rammed . | . . . Walls Destroyed . | . . . Machines Disabled . | . . . Actions | -11 -10 -10 --------- Run | Jun Mat Min Total 622 | 54 388 180 Wait . | . . . Move 497 | 39 299 159 Hop . | . . . Pick Up 26 | 9 14 3 Fast Attach . | . . . Attach 16 | 6 9 1 Detach . | . . . Swap 7 | . 6 1 Drop 3 | . 3 . Fire 53 | . 38 15 Melee 20 | . 19 1 Ram . | . . . Kick . | . . . Crush . | . . . Escape Stasis . | . . . Rewire . | . . . Trap . | . . . Miscellaneous . | . . . Route ------- -11/Junkyard -10/Materials -10/Mines History --------- Turn | Location | Event 2 | -11/Junkyard | Met Revision 17 26 | -11/Junkyard | Discovered new exit (range 16) 47 | -11/Junkyard | Entered Materials 151 | -10/Materials | Repaired Wheel 188 | -10/Materials | Discovered new exit (range 14) 307 | -10/Materials | Build established: Mutant 391 | -10/Materials | Core integrity fell below 50% 421 | -10/Materials | Core integrity fell below 20% 446 | -10/Materials | Lost 7 parts (2p2n1u2w) 581 | -10/Materials | Entered Mines 761 | -10/Mines | Learned location of Zion (-6) 1253 | -10/Mines | Destroyed by G-47 Trooper with Particle Gun Last Messages --------------- Acquired derelict log, extracted data. World map updated: -6/Zion. S-10 Pest destroyed. R-06 Scavenger collects Flight Unit. R-06 Scavenger collects Lgt. Assault Rifle. Acquired Flight Unit. R-06 Scavenger collects Lgt. Ion Engine. Acquired 11 matter. R-06 Scavenger collects Lgt. Assault Rifle. R-06 Scavenger collects Flight Unit. Acquired 9 matter. K-01 Serf collects debris. Acquired Datajack. Sneak attack on K-01 Serf. Jacked K-01 Serf... >>find_chute No applicable chute records found in memory. Acquired Huge Storage Unit. Heat Sink melted. G-34 Mercenary destroyed. Map ----- +----------------------------------------------------+ | ?????????????????????????????????????????????????? | | ?????????????????????????????????????????????????? | | ?????????????????????????????????????????????????? | | ?????????????????????????????????????????????????? | | ?????????????????????????????????????????????????? | | ?????????????????????????????????????????????????? | | ?????????????????????????????????????????????????? | | ?????????????????????????????????????????????????? | | ?????????????????????????????????????????????????? | | ?????????????????????????????????????????????????? | | ??????????????????????????? ?????????????????????? | | ??????????????????????????? ?????????????????????? | | ??????????????????????????? ?????????????????????? | | ??????????????????????????? ?????????????????????? | | ??????????????????????????? ?????????????????????? | | ??????????????????????????? ?????????????????????? | | ??????????????????????????? ?????????????????????? | | ??????????????????????????# #????????????????????? | | ???????????????????#?????? * ????????????????????? | | ???????????????????#$?????#%#????????????????????? | | ???????????????????# ?????#=#????????????????????? | | ???????????????????# ?????# #????????????????????? | | ???????????????????# ????# #????????????????????? | | ???????????????????# ????# ###??????????????????? | | ???????????????????# ##### !#??????????????????? | | ???????????????????# g @ ! #??????????????????? | | ???????????????????# #??????????????????? | | #??????????????????#### ####??????????????????? | | #????????????????????# ##?????????????????????? | | ??###########??###### ##??????????????????????? | | ??# ##?# ##??????????????????????? | | # #?# #?# #### ###?????? #????????????? | | # ### #?? ?## ###### #????????????? | | #?# #??? ?# #????????????? | | #### ##?? ?# #????????????? | | # #?## #?? ?## #######????????????? | | # #??# #?? #?## #??????????????????? | | ?# #### ##?# #??## #??????????????????? | | ## ## ##??# #???# ##?####??####??????? | | ##???# #???# ### #### ##?????? | | ###????# #???# ## #?????? | | ### ##??????# #???# #?????? | | ?## ##?####### #???# ## #?????? | | ## #### ##??# ####### ##?????? | | %## #??## ##?????## #######?? | | % #########???????# # #?? | | ####### #### #???????????# #?? | | ??????## ##??## ## #???????????# #?? | | ???????####????## ### #??????????## ### #?? | | ????????????????#####?# #???####??## ##?#### ##?? | +----------------------------------------------------+ Best States ------------- Heat Dissipation 25 Energy Generation 10 Energy Capacity 250 Matter Stores 440 Matter Capacity 450 Sight Range 16 Terrain Scan Range 14 Terrain Scan Density 10 Evasion (%) 44 Item Schematics ----------------- None Robot Schematics ------------------ None Fabricated ------------ Nothing Alien Tech Used ----------------- None Achievements -------------- None Challenges ------------ None Game ------ Seed BoreSwordDoublenader Manual? 0 Play Time 00:13:59 Cumulative 2.5 hours Start 2023.05.09 @ 08:49:59 End 2023.05.09 @ 09:02:11 Sessions 1 Manual Loads 0 Difficulty Rogue Special Mode None Game No. 4 Rogue 4 Adventurer 0 Explorer 0 Win Type - Total 0 Types 0/0/0/0/0/0/0/0/0 Lore% 5 Gallery% 5 Achievement% 6 Wizard Run 0 Options --------- ASCII 0 Keyboard 0 Movement Arrows Keybinds 0 Fullscreen 2 Font 24/Terminus Map View 76x50 Tactical HUD 0 Map Filters NONE Filters NONE Steam 1 RUN: 93b606df-b47b-458b-aa3c-4d4aabd048c8